bitfinex-derivatives/quotes_BTCF0:USTF0_20241217
["timestamp","ask_amount","ask_price","bid_price","bid_amount"]
[1734467713837,0.41663921,106640.0,106630.0,0.04696224]
[1734467714031,0.41663921,106640.0,106630.0,7.024e-05]
[1734467715530,0.41663921,106640.0,106630.0,0.00896097]
[1734467717942,0.046902,106610.0,106600.0,0.13490344]
[1734467718151,0.77745221,106610.0,106600.0,0.10140703]
[1734467718450,1.6512514,106610.0,106600.0,0.10140703]
[1734467718649,1.6512514,106610.0,106580.0,0.03898653]
[1734467718650,0.046911,106590.0,106580.0,0.03898653]
[1734467718851,0.046911,106590.0,106580.0,0.00878349]
[1734467718852,1.55425976,106590.0,106580.0,0.00878349]
[1734467719050,1.55425976,106590.0,106580.0,0.05578269]
[1734467719239,1.55425976,106590.0,106580.0,0.0469992]
[1734467719749,1.55425976,106590.0,106580.0,0.00886769]
[1734467720342,1.55425976,106590.0,106580.0,8.42e-05]
[1734467720548,1.55425976,106590.0,106580.0,0.0100842]
[1734467720850,1.55425976,106590.0,106580.0,0.12596143]
[1734467721052,1.55425976,106590.0,106580.0,0.13474492]
[1734467721947,1.55425976,106590.0,106580.0,0.0569992]
[1734467725148,1.55425976,106590.0,106580.0,0.0100842]
[1734467727556,1.04941603,106590.0,106580.0,0.0100842]
[1734467729254,0.74941603,106590.0,106580.0,0.0100842]
[1734467729658,1.04941603,106590.0,106580.0,0.0100842]
[1734467729958,0.74941603,106590.0,106580.0,0.0100842]
[1734467730153,1.55433125,106590.0,106580.0,0.0100842]
[1734467730360,1.55433125,106590.0,106580.0,0.16718514]
[1734467730562,1.55433125,106590.0,106580.0,0.0569992]
[1734467730745,1.55433125,106590.0,106580.0,0.05993057]
[1734467733553,1.52502118,106590.0,106580.0,0.05993057]
[1734467733762,1.52502118,106590.0,106580.0,0.0569992]
[1734467734058,1.57193218,106590.0,106580.0,0.0569992]
[1734467735861,1.21113218,106590.0,106580.0,0.0569992]
[1734467736755,1.21113218,106590.0,106580.0,0.06578269]
[1734467737764,1.21113218,106590.0,106580.0,0.0569992]
[1734467739656,1.21113218,106590.0,106580.0,0.06578269]
[1734467740763,1.21113218,106590.0,106580.0,0.0569992]
[1734467742074,1.57193218,106590.0,106580.0,0.0100842]
[1734467742263,0.76701696,106590.0,106580.0,0.0100842]
[1734467742468,1.57193218,106590.0,106580.0,0.0100842]
[1734467742963,1.57193218,106590.0,106580.0,0.16719476]
[1734467743165,1.15527097,106590.0,106580.0,0.13472477]
[1734467743367,7.149e-05,106590.0,106580.0,0.85449464]
[1734467743567,0.45817327,106610.0,106580.0,0.85449464]
[1734467743770,0.36975021,106600.0,106590.0,0.046911]
[1734467743966,0.41665621,106600.0,106590.0,0.08040741]
[1734467744167,0.08080643,106620.0,106590.0,0.08040741]
[1734467744168,0.00140743,106620.0,106610.0,0.046902]
[1734467744474,0.440283,106660.0,106650.0,0.046884]
[1734467744772,0.80499413,106660.0,106650.0,0.08045166]
[1734467745067,0.80499413,106660.0,106650.0,0.51019374]
[1734467745275,7.891e-05,106660.0,106650.0,0.12468082]
[1734467745563,0.04695891,106660.0,106650.0,0.12468082]
[1734467745775,1.21267413,106660.0,106650.0,7.125e-05]
[1734467747771,0.40775891,106660.0,106650.0,7.125e-05]
[1734467748861,0.04695891,106660.0,106650.0,7.125e-05]
[1734467749173,0.04695891,106660.0,106650.0,0.11589733]
[1734467749364,7.891e-05,106660.0,106650.0,0.47669733]
[1734467749858,0.40775891,106660.0,106650.0,0.11589733]
[1734467750064,0.40775891,106660.0,106650.0,0.04695525]
[1734467750566,0.40775891,106660.0,106650.0,0.11589733]
[1734467750763,0.04695891,106660.0,106650.0,0.11589733]
[1734467755369,0.04695891,106660.0,106650.0,0.16316523]
[1734467759373,0.04695891,106660.0,106650.0,0.52396523]
[1734467760271,0.04695891,106660.0,106650.0,0.16316523]
[1734467760468,0.40775891,106660.0,106650.0,0.16316523]
[1734467760783,0.04695891,106660.0,106650.0,0.09422315]
[1734467760977,0.04695891,106660.0,106650.0,0.16316523]
[1734467761380,0.04695891,106660.0,106640.0,0.4248131]
[1734467761674,0.04695891,106660.0,106650.0,0.11582608]
[1734467761878,0.04695891,106660.0,106650.0,0.046884]
[1734467762482,0.04695891,106660.0,106650.0,0.04695359]
[1734467762881,0.40775891,106660.0,106650.0,0.04695359]
[1734467763570,0.40775891,106660.0,106650.0,6.959e-05]
[1734467763571,1.21267413,106660.0,106650.0,6.959e-05]
[1734467763977,1.21267413,106660.0,106650.0,0.04695359]
[1734467764370,1.21267413,106660.0,106650.0,0.11589567]
[1734467764571,7.891e-05,106660.0,106650.0,0.47669567]
[1734467764767,0.0326,106680.0,106670.0,0.046875]
[1734467764967,0.36220658,106690.0,106680.0,0.046871]
[1734467765181,0.36220658,106690.0,106680.0,0.47661308]
[1734467765182,0.00140658,106690.0,106680.0,0.47661308]
[1734467765370,0.1,106700.0,106690.0,0.046867]
[1734467765574,0.1,106700.0,106690.0,0.11580908]
[1734467765774,0.1,106700.0,106690.0,0.47668725]
[1734467765973,1.31257722,106700.0,106690.0,0.04694517]
[1734467766881,1.31257722,106700.0,106690.0,0.11588725]
[1734467769682,0.95177722,106700.0,106690.0,0.11588725]
[1734467770377,0.1,106700.0,106690.0,0.11588725]
[1734467771183,0.1,106700.0,106690.0,0.47668725]
[1734467771573,0.1,106700.0,106690.0,0.50898725]
[1734467772580,0.1,106700.0,106690.0,0.5477516]
[1734467773090,0.05,106700.0,106690.0,0.5477516]
[1734467773480,0.455091,106720.0,106690.0,0.5946186]
[1734467773675,0.408234,106720.0,106710.0,0.11580008]
[1734467773985,0.046858,106710.0,106700.0,0.11580308]
[1734467774307,0.407658,106710.0,106700.0,0.11580308]
[1734467774689,0.407658,106710.0,106700.0,0.06894208]
[1734467774989,0.407658,106710.0,106700.0,0.11580308]
[1734467775579,0.3608,106710.0,106700.0,0.11580308]
[1734467775984,0.36138,106720.0,106710.0,0.046858]
[1734467776185,0.36138,106720.0,106710.0,0.11580008]
[1734467776392,0.00058,106720.0,106710.0,0.47660008]
[1734467776995,0.00058,106720.0,106710.0,0.11580008]
[1734467777180,0.00058,106720.0,106710.0,0.47660008]
[1734467778395,0.047433,106720.0,106710.0,0.11580008]
[1734467778583,0.046858,106710.0,106700.0,0.11580208]
[1734467779392,0.076958,106710.0,106700.0,0.11580208]
[1734467779984,0.0301,106710.0,106700.0,0.11580208]
[1734467780479,0.076958,106710.0,106700.0,0.11580208]
[1734467781289,0.0301,106710.0,106700.0,0.11580208]
[1734467781679,0.047435,106720.0,106710.0,0.046858]
[1734467781888,0.047435,106720.0,106710.0,0.11580008]
[1734467782491,0.408235,106720.0,106710.0,0.01]
[1734467782896,0.473935,106720.0,106710.0,0.01]
[1734467783381,0.473935,106720.0,106710.0,0.12580008]
[1734467784087,0.473935,106720.0,106710.0,0.07894208]
[1734467785289,1.27885022,106720.0,106710.0,0.07894208]
[1734467786999,1.27885022,106720.0,106710.0,0.01]
[1734467788085,1.21315022,106720.0,106710.0,0.12580008]
[1734467789093,1.21257022,106720.0,106710.0,0.12580008]
[1734467789288,1.21257022,106720.0,106710.0,0.16574795]
[1734467791205,1.21257022,106720.0,106710.0,0.11888995]
[1734467791408,1.21257022,106720.0,106710.0,0.01]
[1734467792805,1.21257022,106720.0,106710.0,0.07894208]
[1734467794506,1.24317022,106720.0,106710.0,0.01]
[1734467794803,0.046858,106710.0,106700.0,0.00878349]
[1734467794998,0.440658,106710.0,106700.0,0.01]
[1734467795798,0.55257413,106710.0,106700.0,0.01]
[1734467796001,1.35748935,106710.0,106700.0,0.01]
[1734467796698,1.24557322,106710.0,106700.0,0.01]
[1734467798003,1.27567322,106710.0,106700.0,0.01]
[1734467798400,0.470758,106710.0,106700.0,0.01]
[1734467798718,0.470758,106710.0,106690.0,0.04687119]
[1734467798902,0.407662,106700.0,106690.0,0.04687119]
[1734467799101,0.407662,106700.0,106690.0,0.05687119]
[1734467805214,0.407662,106700.0,106690.0,0.01007817]
[1734467805421,0.47660408,106700.0,106690.0,0.01007817]
[1734467805912,0.046875,106670.0,106650.0,0.61461574]
[1734467806117,0.046875,106670.0,106650.0,0.43815312]
[1734467806118,0.40768,106660.0,106650.0,0.43815312]
[1734467806316,0.43878,106660.0,106650.0,0.44815312]
[1734467806511,0.43878,106660.0,106650.0,0.01]
[1734467806512,1.24369522,106660.0,106650.0,0.01]
[1734467807018,1.24369522,106660.0,106650.0,0.01011894]
[1734467808621,1.27439522,106660.0,106650.0,0.01011894]
[1734467809419,0.83842208,106660.0,106650.0,0.00011894]
[1734467809614,0.83851359,106660.0,106650.0,0.00011894]
[1734467810116,9.151e-05,106660.0,106650.0,0.47674502]
[1734467813419,1.21398981,106690.0,106680.0,0.046871]
[1734467816618,1.28293189,106690.0,106680.0,0.046871]
[1734467818825,1.21398981,106690.0,106680.0,0.046871]
[1734467819326,0.046875,106670.0,106660.0,0.046879]
[1734467819525,0.407675,106670.0,106660.0,0.046879]
[1734467819727,1.16571522,106670.0,106660.0,0.046879]
[1734467819921,1.16571522,106670.0,106660.0,0.11582108]
[1734467820121,0.80491522,106670.0,106660.0,0.11582108]
[1734467821426,0.85179022,106670.0,106660.0,0.046879]
[1734467821632,1.2815323,106670.0,106660.0,0.046879]
[1734467821825,1.26009022,106670.0,106660.0,0.046879]
[1734467822431,0.04688,106660.0,106650.0,0.48257509]
[1734467822642,0.40768,106660.0,106650.0,0.48257509]
[1734467823026,0.40768,106660.0,106650.0,0.09269873]
[1734467823323,0.04688,106660.0,106650.0,0.16164081]
[1734467823525,0.85241522,106670.0,106660.0,0.04688]
[1734467823727,0.89929022,106670.0,106660.0,0.04688]
[1734467824530,1.26009022,106670.0,106660.0,0.04688]
[1734467824731,1.21321522,106670.0,106650.0,0.48257709]
[1734467824931,1.26009222,106670.0,106660.0,0.04688]
[1734467825226,1.26009222,106670.0,106660.0,0.11582208]
[1734467825435,0.89929222,106670.0,106660.0,0.11582208]
[1734467825619,1.26009222,106670.0,106660.0,0.11582208]
[1734467825822,1.26009222,106670.0,106660.0,0.04688]
[1734467826232,0.89929222,106670.0,106660.0,0.04688]
[1734467826431,1.26009222,106670.0,106660.0,0.04688]
[1734467827723,0.89929222,106670.0,106660.0,0.04688]
[1734467828632,1.26009222,106670.0,106660.0,0.04688]
[1734467829430,0.89929222,106670.0,106660.0,0.04688]
[1734467831533,1.26009222,106670.0,106660.0,0.04688]
[1734467833933,1.21321522,106670.0,106660.0,0.11582208]
[1734467834135,0.04774912,106690.0,106680.0,0.046871]
[1734467834136,0.3608,106690.0,106680.0,0.046871]
[1734467834339,0.4078,106690.0,106680.0,0.046871]
[1734467834539,1.25958222,106690.0,106680.0,0.046871]
[1734467835535,1.21271522,106690.0,106680.0,0.046871]
[1734467836440,1.21271522,106690.0,106680.0,0.07145765]
[1734467836632,1.25958222,106690.0,106680.0,0.07145765]
[1734467837031,1.25958222,106690.0,106680.0,0.046871]
[1734467837942,1.25958222,106690.0,106680.0,0.08592548]
[1734467838531,1.21271522,106690.0,106680.0,0.08592548]
[1734467842744,1.21271522,106690.0,106670.0,0.39109669]
[1734467842942,0.4078,106690.0,106680.0,0.046871]
[1734467843544,1.21271522,106690.0,106680.0,0.046871]
[1734467844840,1.25958222,106690.0,106680.0,0.046871]
[1734467845053,1.21271522,106690.0,106680.0,0.11581308]
[1734467845344,0.4078,106690.0,106680.0,0.11581308]
[1734467848052,0.047,106690.0,106680.0,0.47661308]
[1734467848440,0.047,106690.0,106680.0,0.11581308]
[1734467849047,0.047,106690.0,106680.0,0.046871]
[1734467850455,0.047,106690.0,106680.0,0.51543439]
[1734467850748,0.36086656,106700.0,106680.0,0.58437647]
[1734467850939,6.656e-05,106700.0,106690.0,0.47660908]
[1734467851141,6.656e-05,106700.0,106690.0,0.95395596]
[1734467851346,6.656e-05,106700.0,106690.0,0.94797136]
[1734467851954,6.656e-05,106700.0,106690.0,0.58227922]
[1734467852253,6.656e-05,106700.0,106690.0,1.37292761]
[1734467852556,0.12096223,106720.0,106710.0,0.046858]
[1734467852857,0.12096223,106720.0,106710.0,0.14038673]
[1734467853149,0.12096223,106720.0,106710.0,0.11580008]
[1734467854449,0.12096223,106720.0,106710.0,0.47660008]
[1734467854854,0.12096223,106720.0,106710.0,0.11580008]
[1734467855561,0.07410623,106720.0,106710.0,0.11580008]
[1734467857158,0.046853,106720.0,106710.0,0.046858]
[1734467857448,0.046862,106700.0,106690.0,0.53264845]
[1734467857649,0.407662,106700.0,106690.0,0.03952696]
[1734467857852,0.046867,106690.0,106680.0,0.04694576]
[1734467858363,0.046867,106690.0,106680.0,0.11588784]
[1734467858746,1.16571522,106700.0,106690.0,0.046867]
[1734467859051,1.21257722,106700.0,106690.0,0.046867]
[1734467859250,1.16571522,106700.0,106690.0,0.11580908]
[1734467860056,0.80491522,106700.0,106690.0,0.14039573]
[1734467860256,0.485159,106710.0,106700.0,0.046862]
[1734467860658,1.29007422,106710.0,106700.0,0.046862]
[1734467861355,1.24321522,106710.0,106700.0,0.11580408]
[1734467861555,0.4383,106710.0,106700.0,0.11580408]
[1734467861753,0.485158,106710.0,106700.0,0.11580408]
[1734467862846,0.3608,106710.0,106700.0,0.11580408]
[1734467863050,0.046858,106710.0,106700.0,0.046862]
[1734467864146,0.479557,106720.0,106710.0,0.046858]
[1734467864349,0.118757,106720.0,106710.0,0.046858]
[1734467864560,0.118757,106720.0,106710.0,0.14038673]
[1734467864561,0.92367222,106720.0,106710.0,0.14038673]
[1734467864755,0.92367222,106720.0,106710.0,0.07144465]
[1734467865047,1.28447222,106720.0,106710.0,0.046858]
[1734467865249,1.23761522,106720.0,106710.0,0.14038673]
[1734467865458,0.4327,106720.0,106710.0,0.14038673]
[1734467866061,0.0719,106720.0,106710.0,0.14038673]
[1734467866250,0.0719,106720.0,106710.0,0.58664422]
[1734467866452,0.3614,106730.0,106720.0,0.046853]
[1734467866748,0.3614,106730.0,106720.0,0.11579508]
[1734467866951,1.21316422,106730.0,106720.0,0.11579508]
[1734467867762,0.85236422,106730.0,106720.0,0.14038173]
[1734467868164,1.21316422,106730.0,106720.0,0.11579508]
[1734467868558,0.047449,106730.0,106720.0,0.11579508]
[1734467868757,0.408249,106730.0,106720.0,0.046853]
[1734467869157,0.047449,106730.0,106720.0,0.11579508]
[1734467869353,0.407649,106730.0,106720.0,0.11579508]
[1734467870557,0.407649,106730.0,106720.0,0.06894208]
[1734467870867,0.046853,106720.0,106710.0,0.47659708]
[1734467871569,0.407652,106730.0,106720.0,0.046853]
[1734467871958,0.046853,106720.0,106710.0,0.11579808]
[1734467872153,0.407653,106720.0,106710.0,0.11579808]
[1734467873569,0.046853,106720.0,106710.0,0.11579808]
[1734467874068,0.407653,106720.0,106710.0,0.11579808]
[1734467874460,0.046853,106720.0,106710.0,0.11579808]
[1734467874763,0.407653,106720.0,106710.0,0.11579808]
[1734467874964,1.16619523,106730.0,106710.0,0.11579808]
[1734467875268,0.407649,106730.0,106720.0,0.11579508]
[1734467875467,1.21256422,106730.0,106720.0,0.11579508]
[1734467876268,1.21256422,106730.0,106720.0,0.046853]
[1734467877169,0.046853,106720.0,106710.0,0.11579708]
[1734467877768,0.407653,106720.0,106710.0,0.11579708]
[1734467879165,0.046853,106720.0,106710.0,0.11579708]
[1734467879564,0.407653,106720.0,106710.0,0.11579708]
[1734467881073,0.407653,106720.0,106710.0,0.11579708]
[1734467881477,0.046853,106720.0,106710.0,0.11579708]
[1734467881674,0.407653,106720.0,106710.0,0.11579708]
[1734467883668,0.046858,106710.0,106700.0,0.04593326]
[1734467883971,0.046858,106710.0,106690.0,0.44625749]
[1734467883972,0.046862,106700.0,106690.0,0.44625749]
[1734467884167,0.046862,106700.0,106690.0,0.02458665]
[1734467884168,0.47660408,106700.0,106690.0,0.02458665]
[1734467884367,0.046867,106690.0,106680.0,7.776e-05]
[1734467884567,0.47660908,106690.0,106680.0,7.776e-05]
[1734467884761,1.2815243,106690.0,106680.0,7.776e-05]
[1734467885165,0.47660908,106690.0,106680.0,7.776e-05]
[1734467885572,0.47660908,106690.0,106680.0,0.39127364]
[1734467885776,0.47660908,106690.0,106680.0,7.776e-05]
[1734467886370,1.2815243,106690.0,106680.0,7.776e-05]
[1734467887180,0.046875,106670.0,106660.0,0.41578253]
[1734467887365,0.407675,106670.0,106660.0,0.46320758]
[1734467887565,1.21251246,106670.0,106650.0,0.83968311]
[1734467887774,0.40768,106660.0,106650.0,0.43948611]
[1734467888270,0.40768,106660.0,106650.0,0.43955277]
[1734467889774,0.40768,106660.0,106650.0,0.39266877]
[1734467890173,0.40768,106660.0,106650.0,0.00147289]
[1734467890583,0.40768,106660.0,106650.0,0.04835689]
[1734467890869,0.3608,106660.0,106650.0,0.04835689]
[1734467891376,0.3608,106660.0,106650.0,0.09606478]
[1734467892578,0.80483746,106670.0,106660.0,0.04688]
[1734467892882,0.4348,106680.0,106670.0,0.046875]
[1734467893074,0.3608,106680.0,106670.0,0.11581708]
[1734467893281,0.80535747,106690.0,106680.0,0.046871]
[1734467893475,0.80483746,106690.0,106680.0,0.046871]
[1734467894286,0.63087058,106700.0,106680.0,0.046871]
[1734467894490,0.046867,106690.0,106680.0,0.046871]
[1734467894787,0.046867,106690.0,106680.0,0.056871]
[1734467895286,0.63087058,106700.0,106690.0,0.046867]
[1734467895684,1.43570804,106700.0,106690.0,0.046867]
[1734467895988,1.36070804,106700.0,106690.0,0.046867]
[1734467896178,1.3049859,106700.0,106690.0,0.046867]
[1734467896491,1.3049859,106700.0,106680.0,0.056869]
[1734467896791,0.50014844,106700.0,106680.0,0.056869]
[1734467897492,0.50014844,106700.0,106680.0,0.1045543]
[1734467897493,0.56909052,106700.0,106680.0,0.1045543]
[1734467897695,0.47660908,106690.0,106680.0,0.0576853]
[1734467897983,0.47660908,106690.0,106680.0,0.01]
[1734467898285,1.29120446,106690.0,106680.0,0.056871]
[1734467898479,0.85170446,106690.0,106680.0,0.056871]
[1734467898686,1.21250446,106690.0,106680.0,0.056871]
[1734467900182,1.16563746,106690.0,106680.0,0.056871]
[1734467901780,1.21250446,106690.0,106680.0,0.056871]
[1734467903191,1.16563746,106690.0,106680.0,0.056871]
[1734467903895,0.3608,106690.0,106680.0,0.056871]
[1734467905588,1.37440899,106700.0,106680.0,0.056871]
[1734467905789,1.37392898,106700.0,106680.0,0.056871]
[1734467907287,1.42079498,106700.0,106680.0,0.056871]
[1734467907889,1.37392898,106700.0,106680.0,0.056871]
[1734467908481,0.3608,106690.0,106680.0,0.056871]
[1734467908878,1.37444899,106700.0,106680.0,0.056871]
[1734467909087,1.37392898,106700.0,106680.0,0.056867]
[1734467909487,1.42079498,106700.0,106680.0,0.056867]
[1734467909682,1.37392898,106700.0,106680.0,0.056867]
[1734467909986,1.42079498,106700.0,106680.0,0.056867]
[1734467910293,0.3608,106690.0,106680.0,0.056867]
[1734467910686,0.407667,106690.0,106680.0,0.056867]
[1734467911495,0.47660908,106690.0,106680.0,0.056867]
[1734467911981,0.47660908,106690.0,106680.0,0.01]
[1734467912992,1.28144654,106690.0,106680.0,0.01]
[1734467913185,1.28144654,106690.0,106680.0,0.056871]
[1734467913383,1.21250446,106690.0,106680.0,0.44623106]
[1734467918899,0.07340658,106700.0,106690.0,0.046867]
[1734467919085,0.3608,106710.0,106690.0,0.95605774]
[1734467919397,0.407655,106720.0,106710.0,0.046858]
[1734467919398,0.487255,106720.0,106710.0,0.046858]
[1734467921709,0.04189779,106710.0,106700.0,0.01]
[1734467922001,0.47163987,106710.0,106700.0,0.01]
[1734467922793,0.046862,106700.0,106690.0,0.39048696]
[1734467922994,0.63150408,106700.0,106690.0,0.40048696]
[1734467923191,0.63150408,106700.0,106690.0,0.01008655]
[1734467926001,1.43634154,106700.0,106690.0,0.01008655]
[1734467929507,1.36739946,106700.0,106690.0,0.01008655]
[1734467929696,1.36739946,106700.0,106690.0,0.05695355]
[1734467929897,0.407662,106700.0,106690.0,0.05695355]
[1734467930204,0.407662,106700.0,106690.0,0.44735396]
[1734467931193,0.3608,106700.0,106690.0,0.44735396]
[1734467931397,0.3608,106710.0,106700.0,0.046862]
[1734467931594,0.642856,106720.0,106700.0,0.093724]
[1734467931909,0.71179808,106720.0,106710.0,0.01]
[1734467938111,0.642856,106720.0,106710.0,0.01]
[1734467938312,0.3608,106720.0,106710.0,0.056858]
[1734467938507,0.38052727,106730.0,106720.0,0.046853]
[1734467938706,0.38000726,106730.0,106720.0,0.046853]
[1734467939007,0.38000726,106730.0,106720.0,0.07143965]
[1734467939201,0.38000726,106730.0,106720.0,0.046853]
[1734467939800,0.42685626,106730.0,106720.0,0.046853]
[1734467941005,0.3608,106730.0,106720.0,0.046853]
[1734467941209,0.3608,106730.0,106720.0,0.204053]
[1734467942917,0.48594582,106740.0,106730.0,0.046849]
[1734467945411,0.046849,106730.0,106720.0,0.08671609]
[1734467945617,0.407649,106730.0,106720.0,0.08671609]
[1734467946616,0.046849,106730.0,106720.0,0.08671609]
[1734467946814,1.29078628,106740.0,106730.0,0.046854]
[1734467947015,0.48594882,106740.0,106730.0,0.046854]
[1734467947405,0.12514882,106740.0,106730.0,0.046854]
[1734467947920,0.48594882,106740.0,106730.0,0.046854]
[1734467948617,0.48594882,106740.0,106720.0,0.03986409]
[1734467948824,0.3608,106730.0,106720.0,0.046855]
[1734467951512,0.407654,106730.0,106720.0,0.046855]
[1734467954214,0.046858,106720.0,106710.0,0.09577968]
[1734467954522,0.3608,106720.0,106710.0,0.09577968]
[1734467954916,0.3608,106720.0,106710.0,0.31352176]
[1734467955124,1.21297346,106730.0,106710.0,0.31352176]
[1734467955125,0.408136,106730.0,106720.0,0.046858]
[1734467955325,0.3608,106730.0,106720.0,0.11580008]
[1734467958022,0.40775082,106740.0,106730.0,0.046854]
[1734467958811,0.40775082,106740.0,106730.0,0.11579608]
[1734467958812,9.882e-05,106740.0,106730.0,0.11579608]
[1734467959828,0.04694782,106740.0,106730.0,0.11579608]
[1734467962018,9.882e-05,106740.0,106730.0,0.11579608]
[1734467962325,9.882e-05,106740.0,106730.0,0.046854]
[1734467964628,0.36089882,106740.0,106730.0,0.046854]
[1734467964926,0.40774782,106740.0,106730.0,0.046854]
[1734467965326,1.23467836,106740.0,106720.0,0.02458665]
[1734467965522,0.40340949,106730.0,106720.0,0.046854]
[1734467966724,0.35655549,106730.0,106720.0,0.046854]
[1734467967126,0.046858,106720.0,106710.0,0.04891768]
[1734467967332,0.47660008,106720.0,106710.0,0.12036733]
[1734467967528,1.34973754,106720.0,106710.0,0.12036733]
[1734467967731,1.28079546,106720.0,106710.0,0.12036733]
[1734467968231,1.34973754,106720.0,106710.0,0.56597649]
[1734467968533,1.34973754,106720.0,106710.0,0.12036733]
[1734467968723,1.28079546,106720.0,106710.0,0.12036733]
[1734467970719,1.28079546,106720.0,106710.0,0.09578068]
[1734467973433,0.54490008,106720.0,106710.0,0.04891768]
[1734467973730,0.54490008,106720.0,106710.0,0.01]
[1734467974228,0.54490008,106720.0,106690.0,0.43907851]
[1734467974429,1.28079546,106720.0,106710.0,0.01]
[1734467974631,0.046867,106700.0,106690.0,0.43907851]
[1734467974829,0.407667,106700.0,106690.0,0.44907851]
[1734467975331,0.836767,106700.0,106690.0,0.44907851]
[1734467976438,0.90570908,106700.0,106690.0,0.01]
[1734467976644,0.046876,106680.0,106670.0,0.43759809]
[1734467976932,0.407676,106680.0,106670.0,0.44759809]
[1734467977133,0.768476,106680.0,106670.0,0.40071809]
[1734467977429,0.768476,106680.0,106670.0,0.0101005]
[1734467977837,0.839676,106680.0,106670.0,0.0101005]
[1734467978222,0.90861808,106680.0,106670.0,0.0101005]
[1734467980326,0.90861808,106680.0,106670.0,0.0001005]
[1734467981338,1.20870565,106680.0,106670.0,0.0001005]
[1734467981633,0.90870565,106680.0,106670.0,0.0001005]
[1734467982337,0.046884,106670.0,106650.0,0.25222439]
[1734467982635,0.482984,106660.0,106650.0,0.046889]
[1734467982833,0.482984,106660.0,106650.0,0.056889]
[1734467983041,0.843784,106660.0,106650.0,0.056889]
[1734467984538,0.7969,106660.0,106650.0,0.08509854]
[1734467985133,0.843784,106660.0,106650.0,0.08509854]
[1734467987943,0.122184,106660.0,106650.0,0.08509854]
[1734467988142,0.482984,106660.0,106650.0,0.08509854]
[1734467993343,0.55048517,106660.0,106650.0,0.08509854]
[1734467993944,0.482984,106660.0,106650.0,0.08509854]
[1734467994449,0.55048517,106660.0,106650.0,0.03820954]
[1734467994747,0.55048517,106660.0,106650.0,0.02820954]
[1734467994948,0.55048517,106660.0,106640.0,0.056891]
[1734467995139,0.3608,106650.0,106640.0,0.056891]
[1734467995541,0.35655913,106650.0,106640.0,0.056891]
[1734467997451,0.40344813,106650.0,106640.0,0.056891]
[1734467997954,0.4709493,106650.0,106640.0,0.056891]
[1734467998544,0.40344813,106650.0,106640.0,0.056891]
[1734468003847,0.046889,106650.0,106640.0,0.056891]
[1734468004040,1.14555091,106670.0,106660.0,0.046884]
[1734468004340,8.757e-05,106680.0,106660.0,0.54665582]
[1734468004543,8.757e-05,106680.0,106670.0,0.11438117]
[1734468004753,8.757e-05,106680.0,106670.0,0.49976782]
[1734468005056,0.3608,106700.0,106690.0,0.046871]
[1734468005652,0.407667,106700.0,106690.0,0.046871]
[1734468006346,0.046874,106690.0,106680.0,0.046874]
[1734468006555,0.407674,106690.0,106680.0,0.046874]
[1734468007153,1.19242491,106690.0,106680.0,0.046874]
[1734468007359,1.26652491,106690.0,106680.0,0.046874]
[1734468007864,0.3608,106690.0,106680.0,0.11437517]
[1734468008247,0.479769,106700.0,106690.0,0.046871]
[1734468008443,0.407669,106700.0,106690.0,0.046871]
[1734468008652,1.19241991,106700.0,106690.0,0.046871]
[1734468014560,0.51100929,106710.0,106690.0,0.14301942]
[1734468014755,0.15020929,106710.0,106700.0,0.046867]
[1734468015061,1.3426232,106710.0,106700.0,0.046867]
[1734468015262,1.41012437,106710.0,106700.0,0.046867]
[1734468015468,1.36326137,106710.0,106690.0,0.02864725]
[1734468015667,0.47516817,106700.0,106690.0,0.04687]
[1734468015973,0.3608,106700.0,106690.0,0.04687]
[1734468018259,0.55787429,106710.0,106700.0,0.046867]
[1734468018649,1.3426252,106710.0,106700.0,0.046867]
[1734468021764,1.2957602,106710.0,106700.0,0.046867]
[1734468022863,1.3426232,106710.0,106700.0,0.046867]
[1734468023966,0.00150929,106710.0,106700.0,0.54266934]
[1734468024168,0.4346,106730.0,106710.0,0.046863]
[1734468024359,0.4346,106730.0,106720.0,0.11435917]
[1734468024553,0.3608,106730.0,106720.0,0.11435917]
[1734468025164,0.3608,106730.0,106720.0,0.11446177]
[1734468025675,0.407654,106730.0,106720.0,0.0469606]
[1734468025869,0.3608,106730.0,106720.0,0.0469606]
[1734468026064,0.3608,106730.0,106720.0,0.11446177]
[1734468026562,0.550149,106740.0,106730.0,0.046854]
[1734468026963,1.33489991,106740.0,106730.0,0.046854]
[1734468028872,1.33489991,106740.0,106720.0,0.0001026]
[1734468029063,0.407654,106730.0,106720.0,0.0469586]
[1734468029372,0.3608,106730.0,106720.0,0.0469586]
[1734468030166,1.33538291,106740.0,106720.0,0.0469586]
[1734468030366,1.33490291,106740.0,106720.0,0.06760377]
[1734468030569,1.33490291,106740.0,106730.0,0.046854]
[1734468030869,1.14555091,106740.0,106730.0,0.046854]
[1734468031061,0.55722352,106750.0,106740.0,0.046849]
[1734468031260,0.408356,106770.0,106760.0,0.046841]
[1734468031461,0.622256,106770.0,106760.0,0.046841]
[1734468031768,0.046841,106760.0,106750.0,0.046844]
[1734468032068,0.046846,106750.0,106740.0,0.046849]
[1734468032263,0.407646,106750.0,106740.0,0.046849]
[1734468032458,0.046849,106740.0,106730.0,0.046852]
[1734468032658,0.478549,106740.0,106730.0,0.046852]
[1734468032866,1.40829991,106740.0,106730.0,0.046852]
[1734468033472,1.40829991,106740.0,106720.0,0.3608]
[1734468033665,0.623549,106740.0,106720.0,0.47515917]
[1734468034064,0.623549,106740.0,106730.0,0.06750117]
[1734468034264,0.623549,106740.0,106730.0,0.046853]
[1734468034470,1.04749991,106740.0,106730.0,0.04694848]
[1734468034671,1.40829991,106740.0,106730.0,0.04694848]
[1734468034970,1.40829991,106740.0,106730.0,9.548e-05]
[1734468035972,1.40829991,106740.0,106730.0,0.04694948]
[1734468037062,1.40829991,106740.0,106730.0,9.548e-05]
[1734468037577,1.05855134,106740.0,106730.0,9.548e-05]
[1734468037777,0.04246416,106720.0,106710.0,0.046861]
[1734468037969,1.14545543,106720.0,106710.0,0.046861]
[1734468038169,1.14545543,106720.0,106710.0,0.11436217]
[1734468038770,1.14545543,106720.0,106710.0,0.114464]
[1734468038975,1.14545543,106720.0,106710.0,0.04696283]
[1734468040584,0.0709,106740.0,106710.0,0.88962717]
[1734468040787,0.0709,106740.0,106730.0,0.11435517]
[1734468041075,0.40905388,106750.0,106740.0,0.046849]
[1734468041076,0.00140588,106750.0,106740.0,0.046849]
[1734468041280,0.00140588,106750.0,106740.0,0.11435017]
[1734468041576,0.36220588,106750.0,106720.0,0.64480117]